bitfinex-derivatives/quotes_BTCF0:USTF0_20241025
["timestamp","ask_amount","ask_price","bid_price","bid_amount"]
[1729850406422,0.15740496,67873.0,67872.0,0.2098161]
[1729850407024,0.073722,67873.0,67872.0,0.2098161]
[1729850407231,0.15740496,67873.0,67872.0,0.2098161]
[1729850408924,0.073722,67873.0,67872.0,0.2098161]
[1729850410625,0.073722,67873.0,67872.0,0.2100051]
[1729850411130,0.073722,67873.0,67872.0,0.09580692]
[1729850414728,0.073722,67873.0,67872.0,0.1839217]
[1729850415033,0.073722,67873.0,67872.0,0.09580692]
[1729850415232,0.073722,67873.0,67872.0,0.09562915]
[1729850415729,0.073722,67873.0,67872.0,0.169073]
[1729850415928,0.073722,67873.0,67872.0,0.09562915]
[1729850416128,0.073722,67873.0,67872.0,0.07342219]
[1729850416520,0.073722,67873.0,67872.0,0.16946326]
[1729850417030,0.19323224,67874.0,67870.0,0.06]
[1729850417031,0.073724,67871.0,67870.0,0.06]
[1729850417229,0.15740696,67871.0,67870.0,0.06]
[1729850417731,0.51820696,67871.0,67870.0,0.06]
[1729850425546,0.96020696,67871.0,67870.0,0.06]
[1729850426136,0.96020696,67871.0,67870.0,0.1187086]
[1729850426333,0.96020696,67871.0,67870.0,0.06]
[1729850428334,0.96020696,67871.0,67870.0,0.10402378]
[1729850428738,1.04388992,67871.0,67868.0,0.0587086]
[1729850429042,0.073729,67866.0,67865.0,0.0587086]
[1729850429241,0.073729,67866.0,67859.0,0.07342219]
[1729850429242,0.07373,67865.0,67863.0,0.0587086]
[1729850429440,0.15741496,67864.0,67863.0,0.0587086]
[1729850429737,0.19861496,67864.0,67863.0,0.0587086]
[1729850429947,0.19861496,67864.0,67863.0,0.1187086]
[1729850430139,0.19861496,67864.0,67863.0,0.06]
[1729850433935,0.28229792,67864.0,67863.0,0.06]
[1729850435039,0.19861496,67864.0,67863.0,0.06]
[1729850435344,0.20856592,67864.0,67853.0,0.11775521]
[1729850435543,0.51822496,67854.0,67853.0,0.073743]
[1729850435850,0.51822496,67854.0,67853.0,0.133743]
[1729850437745,0.51822496,67854.0,67853.0,0.06]
[1729850441142,0.51822496,67854.0,67852.0,0.02624886]
[1729850441342,0.073745,67852.0,67851.0,0.07342219]
[1729850441544,0.073745,67852.0,67851.0,0.22937449]
[1729850441941,0.073745,67852.0,67851.0,0.13342219]
[1729850442450,0.073745,67852.0,67851.0,0.06]
[1729850442845,0.073745,67852.0,67851.0,0.13342219]
[1729850443046,0.073746,67851.0,67850.0,0.09923647]
[1729850443248,0.08368296,67851.0,67849.0,0.15942219]
[1729850443550,0.15742896,67851.0,67850.0,0.13342219]
[1729850444337,0.15742896,67851.0,67849.0,0.086]
[1729850444338,0.15742896,67851.0,67849.0,0.15942219]
[1729850444547,0.073747,67850.0,67849.0,0.18606996]
[1729850444747,0.073747,67850.0,67849.0,0.28222873]
[1729850445044,0.073747,67850.0,67849.0,0.24606996]
[1729850445243,0.073747,67850.0,67849.0,0.26874735]
[1729850446956,0.073747,67850.0,67849.0,0.17264777]
[1729850448345,0.073747,67850.0,67849.0,0.146]
[1729850449561,0.073747,67850.0,67849.0,0.1024]
[1729850451952,0.073747,67850.0,67849.0,0.10401234]
[1729850452155,0.073749,67848.0,67847.0,0.04401234]
[1729850452359,0.51823196,67848.0,67847.0,0.04401234]
[1729850452561,0.51823196,67848.0,67846.0,0.04401234]
[1729850452762,0.15743296,67847.0,67846.0,0.04401234]
[1729850453059,0.15743296,67847.0,67842.0,0.133755]
[1729850453260,0.08368296,67843.0,67842.0,0.133755]
[1729850453659,0.08368296,67843.0,67842.0,0.06]
[1729850454057,0.08368296,67843.0,67842.0,0.15643658]
[1729850455655,0.15743696,67843.0,67842.0,0.15643658]
[1729850456252,0.15743696,67843.0,67842.0,0.09643658]
[1729850456860,0.15743696,67843.0,67842.0,0.16983646]
[1729850457255,0.15743696,67843.0,67840.0,0.07339988]
[1729850457256,0.08368296,67843.0,67840.0,0.07339988]
[1729850457461,0.51823996,67841.0,67840.0,0.07339988]
[1729850457963,0.073758,67840.0,67839.0,0.07339988]
[1729850458160,0.15744096,67840.0,67839.0,0.16998404]
[1729850458353,0.15744096,67840.0,67839.0,0.07339988]
[1729850458957,0.51824096,67840.0,67839.0,0.07339988]
[1729850459459,0.51824096,67840.0,67839.0,0.1699194]
[1729850459858,0.434558,67840.0,67839.0,0.1699194]
[1729850460057,0.51824096,67840.0,67839.0,0.1699194]
[1729850460265,0.51824096,67840.0,67839.0,0.09651952]
[1729850460658,0.51824096,67840.0,67839.0,0.096535]
[1729850461861,0.00180001,67848.0,67847.0,0.07375]
[1729850462052,0.073746,67851.0,67847.0,0.07375]
[1729850462257,0.073746,67851.0,67847.0,0.21610438]
[1729850462565,0.073746,67851.0,67848.0,0.13334317]
[1729850462768,0.15742896,67851.0,67848.0,0.13334317]
[1729850463061,0.15742896,67851.0,67848.0,0.21702613]
[1729850463377,0.15742896,67851.0,67848.0,0.06]
[1729850463378,0.073748,67849.0,67848.0,0.06]
[1729850464263,0.073748,67849.0,67848.0,0.14368296]
[1729850464457,0.073748,67849.0,67848.0,0.21743196]
[1729850465060,0.073748,67849.0,67848.0,0.133749]
[1729850467267,0.073748,67849.0,67848.0,0.159685]
[1729850467467,0.073748,67849.0,67848.0,0.133749]
[1729850467663,0.073748,67849.0,67848.0,0.06]
[1729850467859,0.073748,67849.0,67848.0,0.133749]
[1729850468761,0.073748,67849.0,67848.0,0.20709217]
[1729850469153,0.073748,67849.0,67848.0,0.133749]
[1729850469664,0.1097068,67849.0,67848.0,0.133749]
[1729850470476,0.1097068,67849.0,67848.0,0.06]
[1729850476268,0.073748,67849.0,67848.0,0.15625906]
[1729850477469,0.111448,67849.0,67848.0,0.15625906]
[1729850477868,0.111448,67849.0,67848.0,0.06]
[1729850478675,0.073749,67848.0,67847.0,0.07338309]
[1729850479072,0.073749,67848.0,67847.0,0.13338309]
[1729850479264,0.15743196,67848.0,67847.0,0.13338309]
[1729850479473,0.073749,67848.0,67847.0,0.07338309]
[1729850479784,0.07375,67847.0,67846.0,0.07338309]
[1729850479969,0.07375,67847.0,67846.0,0.16980425]
[1729850480365,0.07375,67847.0,67846.0,0.09642116]
[1729850480578,0.07375,67847.0,67846.0,0.16980468]
[1729850481173,0.3608,67850.0,67848.0,0.073748]
[1729850481476,0.073745,67852.0,67850.0,0.073746]
[1729850481679,0.073745,67852.0,67851.0,0.09640331]
[1729850481865,0.3608,67854.0,67851.0,0.09640331]
[1729850482073,0.3608,67854.0,67853.0,0.15742596]
[1729850482270,0.07374,67856.0,67853.0,0.25355162]
[1729850482471,0.10020353,67856.0,67855.0,0.0733455]
[1729850483184,0.10020353,67856.0,67854.0,0.0733455]
[1729850483372,0.10020353,67856.0,67854.0,0.1470875]
[1729850483683,0.073736,67860.0,67856.0,0.07374]
[1729850483875,0.073736,67860.0,67859.0,0.05866781]
[1729850484270,0.19914757,67860.0,67856.0,0.08368296]
[1729850484471,0.12541157,67859.0,67857.0,0.073739]
[1729850484666,0.12541157,67858.0,67857.0,0.073739]
[1729850484877,0.07780917,67858.0,67857.0,0.15742196]
[1729850485371,0.073736,67860.0,67858.0,0.073738]
[1729850485572,0.07785621,67859.0,67858.0,0.073738]
[1729850487875,0.3608,67862.0,67859.0,0.073737]
[1729850488182,0.07793213,67861.0,67859.0,0.073737]
[1729850488384,0.07793213,67860.0,67859.0,0.073737]
[1729850488680,0.23535109,67860.0,67859.0,0.06]
[1729850489077,0.28275761,67860.0,67859.0,0.06]
[1729850489386,0.36644057,67860.0,67859.0,0.06]
[1729850491083,0.28275761,67860.0,67859.0,0.06]
[1729850491283,0.15741896,67860.0,67859.0,0.06]
[1729850491488,0.15741896,67860.0,67859.0,0.11866781]
[1729850491676,0.15741896,67860.0,67859.0,0.06]
[1729850493195,0.16736592,67860.0,67856.0,0.0733455]
[1729850493375,0.08368296,67857.0,67855.0,0.0733455]
[1729850493580,0.38703257,67862.0,67855.0,0.0733455]
[1729850493581,0.51822296,67856.0,67855.0,0.0733455]
[1729850493778,0.51822296,67856.0,67855.0,0.22969366]
[1729850495489,0.15742296,67856.0,67855.0,0.22969366]
[1729850495788,0.51822296,67856.0,67855.0,0.22969366]
[1729850496287,0.51822296,67856.0,67855.0,0.22963305]
[1729850496485,0.51822296,67856.0,67855.0,0.15628755]
[1729850497480,0.51822296,67856.0,67855.0,0.09628755]
[1729850497884,0.51822296,67856.0,67855.0,0.16957412]
[1729850498284,0.073741,67855.0,67854.0,0.07328657]
[1729850498484,0.19502396,67855.0,67854.0,0.16954716]
[1729850498984,0.19502396,67855.0,67854.0,0.07328657]
[1729850499179,0.073742,67854.0,67853.0,0.07328657]
[1729850499381,0.16018296,67855.0,67843.0,0.073753]
[1729850499382,0.16018296,67855.0,67843.0,0.15743596]
[1729850499587,0.08368296,67846.0,67844.0,0.06]
[1729850501686,0.08368296,67846.0,67844.0,0.133753]
[1729850502697,0.08368296,67846.0,67844.0,0.06]
[1729850503090,0.08368296,67846.0,67844.0,0.14368296]
[1729850503596,0.08368296,67846.0,67844.0,0.06]
[1729850505193,0.15743396,67846.0,67844.0,0.06]
[1729850505492,0.073752,67845.0,67844.0,0.06]
[1729850506284,0.073752,67845.0,67844.0,0.24455168]
[1729850507392,0.073752,67845.0,67844.0,0.1564369]
[1729850508391,0.073752,67845.0,67844.0,0.22974484]
[1729850511598,0.15743996,67841.0,67840.0,0.17045616]
[1729850511801,0.15743996,67841.0,67840.0,0.07330794]
[1729850512390,0.15743996,67841.0,67835.0,0.08796322]
[1729850512391,0.073758,67840.0,67839.0,0.07330794]
[1729850512604,0.073758,67840.0,67839.0,0.17041624]
[1729850513407,0.073758,67840.0,67839.0,0.07330794]
[1729850514095,0.073758,67840.0,67838.0,0.07330794]
[1729850514296,0.44448296,67839.0,67838.0,0.07330794]
[1729850514596,0.44448296,67839.0,67837.0,0.07330794]
[1729850514597,0.51824196,67839.0,67837.0,0.07330794]
[1729850516400,0.43456,67838.0,67837.0,0.07330794]
[1729850516606,0.3608,67838.0,67834.0,0.07330794]
[1729850516798,0.15744596,67835.0,67834.0,0.07330794]
[1729850517104,0.073765,67833.0,67832.0,0.07330794]
[1729850517298,0.15744796,67833.0,67832.0,0.07330794]
[1729850518394,0.15744796,67833.0,67831.0,0.07330794]
[1729850518604,0.08368296,67832.0,67831.0,0.07330794]
[1729850518807,0.08368296,67832.0,67831.0,0.17068483]
[1729850519412,0.08368296,67832.0,67831.0,0.07330794]
[1729850520592,0.08368296,67832.0,67831.0,0.17070007]
[1729850521404,0.08368296,67832.0,67831.0,0.09739213]
[1729850521804,0.434565,67833.0,67831.0,0.09739213]
[1729850522006,0.434565,67833.0,67832.0,0.09739213]
[1729850522300,0.434565,67833.0,67832.0,0.15739213]
[1729850522503,0.073765,67833.0,67832.0,0.15739213]
[1729850522710,0.073765,67833.0,67832.0,0.15726014]
[1729850523603,0.073765,67833.0,67832.0,0.23044983]
[1729850526505,0.073765,67833.0,67832.0,0.2304587]
[1729850527108,0.112365,67833.0,67832.0,0.15726014]
[1729850527304,0.112365,67833.0,67832.0,0.1572994]
[1729850532108,0.112365,67833.0,67832.0,0.15750019]
[1729850535313,0.112365,67833.0,67832.0,0.24546341]
[1729850536314,0.112365,67833.0,67832.0,0.15750019]
[1729850536713,0.112365,67833.0,67832.0,0.15753722]
[1729850537309,0.112365,67833.0,67832.0,0.27381895]
[1729850538021,0.112365,67833.0,67832.0,0.15753722]
[1729850538316,0.112365,67833.0,67832.0,0.27378825]
[1729850541324,0.112365,67833.0,67832.0,0.27375118]
[1729850542416,0.112365,67833.0,67832.0,0.27377156]
[1729850542918,0.112365,67833.0,67832.0,0.15751593]
[1729850543118,0.112365,67833.0,67832.0,0.27376538]
[1729850544625,0.112365,67833.0,67832.0,0.15751593]
[1729850546126,0.112365,67833.0,67832.0,0.15736971]
[1729850546322,0.112365,67833.0,67832.0,0.24546567]
[1729850550525,0.112365,67833.0,67832.0,0.15736971]
[1729850550729,0.112365,67833.0,67832.0,0.15712502]
[1729850552222,0.112365,67833.0,67832.0,0.24522098]
[1729850552424,0.112365,67833.0,67832.0,0.27277409]
[1729850554657,0.112365,67833.0,67832.0,0.15712502]
[1729850557059,0.112365,67833.0,67832.0,0.27293602]
[1729850557290,0.112365,67833.0,67832.0,0.15712502]
[1729850557451,0.112365,67833.0,67832.0,0.27293272]
[1729850557653,0.112365,67833.0,67832.0,0.15712502]
[1729850557966,0.112365,67833.0,67832.0,0.27287178]
[1729850559350,0.112365,67833.0,67832.0,0.06]
[1729850559541,0.14776269,67833.0,67832.0,0.06]
[1729850562674,0.112365,67833.0,67832.0,0.06]
[1729850563354,0.14737232,67833.0,67832.0,0.06]
[1729850563561,0.112365,67833.0,67832.0,0.06]
[1729850563956,0.14739618,67833.0,67832.0,0.06]
[1729850564158,0.112365,67833.0,67832.0,0.06]
[1729850564559,0.14755877,67833.0,67832.0,0.06]
[1729850564767,0.112365,67833.0,67832.0,0.06]
[1729850566651,0.112365,67833.0,67832.0,0.15709872]
[1729850568250,0.473165,67833.0,67832.0,0.15709872]
[1729850569840,0.473165,67833.0,67832.0,0.24518589]
[1729850570241,0.112365,67833.0,67832.0,0.24518589]
[1729850570442,0.112365,67833.0,67832.0,0.15709872]
[1729850572756,0.10072025,67838.0,67832.0,0.15709872]
[1729850572939,0.3608,67849.0,67837.0,0.08368296]
[1729850573144,0.073753,67845.0,67842.0,0.08368296]
[1729850573455,0.073753,67845.0,67842.0,0.18059887]
[1729850573649,0.073753,67845.0,67842.0,0.26867759]
[1729850574344,0.073753,67845.0,67842.0,0.18059887]
[1729850574543,0.073753,67845.0,67842.0,0.08368296]
[1729850574544,0.39565623,67843.0,67842.0,0.08368296]
[1729850574743,0.3608,67843.0,67842.0,0.08368296]
[1729850574954,0.3956895,67843.0,67842.0,0.08368296]
[1729850575252,0.3608,67843.0,67842.0,0.08368296]
[1729850576343,0.3608,67850.0,67845.0,0.073752]
[1729850576544,0.03493164,67849.0,67847.0,0.08368296]
[1729850576742,0.03493164,67848.0,67847.0,0.08368296]
[1729850577244,0.3608,67850.0,67847.0,0.14368296]
[1729850577848,0.03500418,67849.0,67847.0,0.14368296]
[1729850578045,0.3608,67850.0,67847.0,0.06]
[1729850579251,0.3608,67850.0,67847.0,0.13375]
[1729850580038,0.3608,67850.0,67847.0,0.06]
[1729850580244,0.3608,67850.0,67848.0,0.073749]
[1729850580855,0.3608,67850.0,67848.0,0.08368296]
[1729850581147,0.02584054,67853.0,67850.0,0.073746]
[1729850581347,0.15742496,67855.0,67851.0,0.15742796]
[1729850581552,0.15742496,67855.0,67853.0,0.05866845]
[1729850582252,0.15742496,67855.0,67852.0,0.05866845]
[1729850582451,0.073743,67854.0,67852.0,0.05866845]
[1729850583049,0.08368296,67855.0,67852.0,0.05866845]
[1729850583241,0.073743,67853.0,67851.0,0.05866845]
[1729850583444,0.15742796,67852.0,67851.0,0.05866845]
[1729850583956,0.15742796,67852.0,67850.0,0.05866845]
[1729850585343,0.15742796,67852.0,67849.0,0.09576845]
[1729850585539,0.073747,67850.0,67849.0,0.05866845]
[1729850586455,0.073747,67850.0,67847.0,0.06]
[1729850586456,0.073748,67849.0,67848.0,0.05866845]
[1729850586652,0.073749,67848.0,67847.0,0.06]
[1729850586954,0.109449,67848.0,67847.0,0.06]
[1729850587146,0.109449,67848.0,67847.0,0.11850578]
[1729850587343,0.109449,67848.0,67847.0,0.06]
[1729850587548,0.19313196,67848.0,67847.0,0.06]
[1729850587747,0.19313196,67848.0,67847.0,0.10388625]
[1729850588146,0.109449,67848.0,67847.0,0.10388625]
[1729850589150,0.109449,67848.0,67847.0,0.06]
[1729850589547,0.23017341,67848.0,67847.0,0.06]
[1729850589747,0.31385637,67848.0,67847.0,0.06]
[1729850590147,0.34985637,67848.0,67847.0,0.06]
[1729850590351,0.34985637,67848.0,67828.0,0.0359]
[1729850590352,0.27610737,67848.0,67832.0,0.08368296]
[1729850590549,0.08368296,67839.0,67829.0,0.073769]
[1729850590748,0.073761,67837.0,67833.0,0.02684807]
[1729850590960,0.14858533,67837.0,67834.0,0.0976]
[1729850591152,0.08368296,67835.0,67834.0,0.0976]
[1729850591363,0.08368296,67835.0,67834.0,0.06]
[1729850591364,0.59307029,67835.0,67834.0,0.06]
[1729850591558,0.5882056,67835.0,67834.0,0.06]
[1729850592054,0.71164938,67835.0,67834.0,0.06]
[1729850593855,0.67355071,67835.0,67834.0,0.06]
[1729850594356,0.62796642,67835.0,67834.0,0.06]
[1729850594560,0.71164938,67835.0,67834.0,0.06]
[1729850595850,0.62796642,67835.0,67834.0,0.06]
[1729850596562,0.55354596,67835.0,67834.0,0.06]
[1729850597565,0.469863,67835.0,67834.0,0.06]
[1729850597863,0.19274596,67835.0,67834.0,0.06]
[1729850598070,0.11898296,67835.0,67834.0,0.06]
[1729850598558,0.11898296,67835.0,67834.0,0.23059773]
[1729850598960,0.11898296,67835.0,67834.0,0.13333556]
[1729850599456,0.073761,67837.0,67834.0,0.13333556]
[1729850599457,0.02615959,67840.0,67834.0,0.23107265]
[1729850599650,0.15743996,67841.0,67836.0,0.07318647]
[1729850599651,0.08368296,67839.0,67836.0,0.07318647]
[1729850599857,0.08368296,67839.0,67837.0,0.07318647]
[1729850600058,0.08368296,67839.0,67836.0,0.07318647]
[1729850600463,0.08368296,67839.0,67837.0,0.07318647]
[1729850601961,0.08368296,67839.0,67838.0,0.07318647]
[1729850602165,0.08368296,67839.0,67836.0,0.07318647]
[1729850602364,0.073757,67841.0,67836.0,0.07318647]
[1729850602365,0.08368296,67837.0,67836.0,0.07318647]
[1729850602671,0.08368296,67837.0,67836.0,0.09733316]
[1729850602860,0.08370416,67837.0,67836.0,0.09733316]
[1729850603667,0.08370416,67837.0,67834.0,0.15977299]
[1729850603668,0.08370416,67837.0,67835.0,0.0732045]
[1729850610572,0.08370579,67836.0,67835.0,0.0732045]
[1729850610765,0.15746779,67836.0,67835.0,0.17052269]
[1729850611469,0.15746779,67836.0,67835.0,0.09731819]
[1729850611665,0.1920257,67836.0,67834.0,0.06]
[1729850611870,0.03455791,67835.0,67834.0,0.06]
[1729850612265,0.10832091,67835.0,67834.0,0.06]
[1729850613866,0.10832091,67835.0,67824.0,0.06]
[1729850613867,0.07439771,67835.0,67825.0,0.0378]
[1729850614077,0.08370579,67826.0,67825.0,0.0378]
[1729850614266,0.08370579,67826.0,67825.0,0.0978]
[1729850614460,0.11791013,67826.0,67825.0,0.0978]
[1729850615272,0.08370579,67826.0,67825.0,0.0978]
[1729850615457,0.19173263,67826.0,67825.0,0.06]
[1729850618883,0.03425384,67826.0,67825.0,0.133774]
[1729850619174,0.03425384,67826.0,67825.0,0.169474]
[1729850619570,0.3608,67831.0,67828.0,0.07377]
[1729850619765,0.08370579,67830.0,67829.0,0.09745591]
[1729850619968,0.3608,67831.0,67829.0,0.17122591]
[1729850620173,0.3608,67831.0,67830.0,0.09745591]
[1729850625179,0.434567,67831.0,67830.0,0.09745591]
[1729850626482,0.073767,67831.0,67830.0,0.09745591]
[1729850626684,0.073767,67831.0,67829.0,0.07377]
[1729850627775,0.073767,67831.0,67826.0,0.0383]
[1729850627776,0.08370579,67831.0,67826.0,0.0383]
[1729850627977,0.073773,67826.0,67825.0,0.06]
[1729850632391,0.434573,67826.0,67825.0,0.06]
[1729850634003,0.073773,67826.0,67825.0,0.06]
[1729850634701,0.073773,67826.0,67825.0,0.15750715]
[1729850635293,0.3608,67832.0,67825.0,0.15750715]
[1729850635597,0.073769,67830.0,67829.0,0.07333844]
[1729850635796,0.15747479,67830.0,67829.0,0.07333844]
[1729850636198,0.15747479,67830.0,67829.0,0.1708279]
[1729850636400,0.15747479,67830.0,67829.0,0.09748946]
[1729850640605,0.15747379,67830.0,67829.0,0.09748873]
[1729850644108,0.15747379,67830.0,67829.0,0.18532317]
[1729850644414,0.15747379,67830.0,67829.0,0.09736379]
[1729850646107,0.15747379,67830.0,67829.0,0.18543276]
[1729850646813,0.15747379,67830.0,67829.0,0.09736379]
[1729850648015,0.15747379,67830.0,67829.0,0.18543734]
[1729850648606,0.15747379,67830.0,67829.0,0.18558961]
[1729850649816,0.15747379,67830.0,67825.0,0.133774]
[1729850649817,0.07377,67829.0,67825.0,0.133774]
[1729850650015,0.03468459,67828.0,67825.0,0.133774]
[1729850650213,0.08370579,67826.0,67825.0,0.133774]
[1729850650409,0.11839038,67826.0,67825.0,0.133774]
[1729850652611,0.46476,67840.0,67829.0,0.073769]
[1729850652921,0.08370579,67832.0,67829.0,0.073769]
[1729850656314,0.08370579,67832.0,67829.0,0.073769]
[1729850656820,0.08370579,67832.0,67830.0,0.09731637]
[1729850657022,0.08370579,67832.0,67831.0,0.09731637]
[1729850660411,0.08370579,67832.0,67831.0,0.17108337]
[1729850661921,0.08370579,67832.0,67831.0,0.19701448]
[1729850662915,0.0379,67834.0,67831.0,0.19701448]
[1729850663114,0.0379,67834.0,67833.0,0.08800031]
[1729850663312,0.0379,67834.0,67833.0,0.18531668]
[1729850664326,0.0379,67834.0,67833.0,0.09731637]
[1729850664815,0.07292418,67834.0,67831.0,0.09969811]
[1729850665013,0.11872997,67833.0,67831.0,0.09969811]
[1729850665218,0.03502418,67832.0,67831.0,0.09969811]
[1729850670922,0.03502418,67832.0,67831.0,0.02593111]
[1729850671226,0.03502418,67832.0,67829.0,0.3608]
[1729850671414,0.08370579,67830.0,67829.0,0.3608]
[1729850671729,0.19249797,67830.0,67829.0,0.3608]
[1729850671925,0.19249797,67830.0,67829.0,0.48386262]
[1729850671926,0.15747379,67830.0,67829.0,0.48386262]
[1729850672228,0.15747379,67830.0,67829.0,0.21107996]
[1729850673019,0.15747379,67830.0,67829.0,0.12306262]
[1729850675719,0.15747379,67830.0,67829.0,0.21107996]
[1729850677031,0.15747379,67830.0,67829.0,0.12306262]
[1729850679130,0.15747379,67830.0,67829.0,0.09716203]
[1729850679722,0.15747379,67830.0,67828.0,0.0880477]
[1729850679932,0.07377,67829.0,67828.0,0.11386841]
[1729850680927,0.07377,67829.0,67828.0,0.02582071]
[1729850681131,0.07377,67829.0,67825.0,0.06]
[1729850681326,0.08370579,67826.0,67825.0,0.06]
[1729850682325,0.08370579,67826.0,67825.0,0.08585067]
[1729850687330,0.08370579,67826.0,67825.0,0.18300867]
[1729850687530,0.08370579,67826.0,67825.0,0.27105654]
[1729850687531,0.15747879,67826.0,67825.0,0.27105654]
[1729850687733,0.15747879,67826.0,67825.0,0.27106292]
[1729850689939,0.15747879,67826.0,67825.0,0.18300867]
[1729850690127,0.15747879,67826.0,67825.0,0.27106292]
[1729850690328,0.15747879,67826.0,67825.0,0.18300867]
[1729850691034,0.15747879,67826.0,67825.0,0.27106292]
[1729850691234,0.15747879,67826.0,67825.0,0.18300867]
[1729850697246,0.15747879,67826.0,67825.0,0.2563776]
[1729850697247,0.073773,67826.0,67825.0,0.2563776]
[1729850697433,0.15747879,67826.0,67825.0,0.2563776]
[1729850697834,0.073773,67826.0,67825.0,0.18300867]
[1729850698039,0.15747879,67826.0,67825.0,0.18300867]
[1729850700237,0.64713158,67826.0,67825.0,0.05874302]
[1729850700437,0.64713158,67826.0,67825.0,0.03253428]
[1729850700438,0.72090458,67826.0,67825.0,0.03253428]
[1729850700637,0.073774,67825.0,67814.0,0.06]
[1729850700852,0.15749079,67815.0,67814.0,0.06]
[1729850701033,0.25837079,67815.0,67814.0,0.06]
[1729850705846,0.24119658,67815.0,67814.0,0.06]
[1729850706040,0.30279158,67815.0,67809.0,0.04402537]
[1729850706240,0.60200158,67810.0,67809.0,0.04402537]
[1729850706552,0.073792,67808.0,67807.0,0.04402537]
[1729850706753,0.24120358,67808.0,67807.0,0.04402537]
[1729850706949,0.24120358,67808.0,67806.0,0.06]
[1729850706950,0.073794,67807.0,67806.0,0.06]
[1729850707853,0.16741158,67808.0,67805.0,0.06]
[1729850708150,0.109895,67806.0,67805.0,0.06]
[1729850708354,0.109895,67806.0,67805.0,0.12]
[1729850708947,0.109895,67806.0,67805.0,0.06]
[1729850710553,0.16741158,67808.0,67805.0,0.133796]
[1729850710554,0.10008,67808.0,67805.0,0.133796]
[1729850710756,0.08370579,67807.0,67806.0,0.145095]
[1729850712738,0.02601629,67817.0,67806.0,0.145095]
[1729850712739,0.3608,67824.0,67806.0,0.51374]
[1729850712940,0.08370579,67819.0,67815.0,0.073785]
[1729850713153,0.08370579,67816.0,67815.0,0.073785]
[1729850714355,0.15748979,67816.0,67815.0,0.073785]
[1729850714652,0.073784,67816.0,67815.0,0.073785]
[1729850715154,0.073786,67814.0,67813.0,0.073787]
[1729850715344,0.15749179,67814.0,67813.0,0.073787]
[1729850717454,0.08370579,67814.0,67811.0,0.3608]
[1729850717750,0.07379,67810.0,67809.0,0.073791]
[1729850717944,0.15749579,67810.0,67809.0,0.17037863]
[1729850718553,0.15749579,67810.0,67809.0,0.09658763]
[1729850720051,0.15749579,67810.0,67809.0,0.09660504]
[1729850720360,0.073795,67806.0,67805.0,0.06076]
[1729850720548,0.51830079,67806.0,67805.0,0.15671424]
[1729850720748,0.51830079,67806.0,67805.0,0.06]
[1729850720749,0.434595,67806.0,67805.0,0.06]
[1729850721144,0.534675,67806.0,67805.0,0.06]
[1729850723746,0.534675,67806.0,67805.0,0.12]
[1729850723946,0.61838079,67806.0,67805.0,0.12]
[1729850726754,0.65468079,67806.0,67805.0,0.06]
[1729850734149,0.55460079,67806.0,67805.0,0.06]
[1729850734360,0.571015,67806.0,67805.0,0.06]
[1729850735751,0.470895,67806.0,67805.0,0.06]
[1729850737060,0.110095,67806.0,67805.0,0.06]
[1729850737548,0.19380079,67806.0,67805.0,0.06]
[1729850737856,0.27750658,67806.0,67805.0,0.06]
[1729850739549,0.073802,67799.0,67798.0,0.13333598]
[1729850739759,0.434602,67799.0,67798.0,0.22924769]
[1729850739964,0.434602,67799.0,67798.0,0.13333598]
[1729850740261,0.51830779,67799.0,67798.0,0.13333598]
[1729850740455,0.51830779,67799.0,67798.0,0.06]
[1729850740758,0.55250779,67799.0,67798.0,0.06]
[1729850741351,0.073809,67793.0,67792.0,0.07333598]
[1729850741549,0.60202058,67793.0,67792.0,0.07333598]
[1729850741750,0.60202058,67793.0,67792.0,0.22931641]
[1729850742356,0.60202058,67793.0,67792.0,0.13333598]
[1729850744155,0.51831479,67793.0,67792.0,0.22937931]
[1729850745056,0.51831479,67793.0,67792.0,0.13333598]
[1729850746665,0.51831479,67793.0,67792.0,0.06]
[1729850748059,0.60202058,67793.0,67792.0,0.06]
[1729850748263,0.073815,67787.0,67773.0,0.3608]
[1729850748460,0.434615,67787.0,67775.0,0.0563693]
[1729850749368,0.434615,67787.0,67775.0,0.0344]
[1729850750661,0.434615,67787.0,67780.0,0.07339872]
[1729850753361,0.073815,67787.0,67780.0,0.07339872]
[1729850753563,0.434615,67787.0,67780.0,0.07339872]
[1729850755565,0.51832079,67787.0,67780.0,0.07339872]
[1729850755760,0.471315,67787.0,67775.0,0.07838575]
[1729850755961,0.55502079,67787.0,67775.0,0.0344]
[1729850756372,0.55502079,67787.0,67775.0,0.11810579]
[1729850756766,0.55502079,67787.0,67775.0,0.0344]
[1729850760366,0.471315,67787.0,67775.0,0.0344]
[1729850760562,0.55502079,67787.0,67775.0,0.0344]
[1729850761965,0.55502079,67787.0,67783.0,0.04398575]
[1729850763067,0.434615,67787.0,67783.0,0.04398575]
[1729850763261,0.51832079,67787.0,67781.0,0.05862208]
[1729850763469,0.51832079,67787.0,67782.0,0.05862208]
[1729850763663,0.51832079,67787.0,67784.0,0.04395273]
[1729850764270,0.51832079,67787.0,67785.0,0.04395273]
[1729850765279,0.51832079,67787.0,67780.0,0.15752879]
[1729850765280,0.51832079,67787.0,67786.0,0.10395273]
[1729850765981,0.51832079,67787.0,67786.0,0.06]
[1729850767470,0.51832079,67787.0,67786.0,0.11862208]
[1729850767676,0.434615,67787.0,67786.0,0.06]
[1729850768173,0.434615,67787.0,67786.0,0.0962]
[1729850769064,0.073815,67787.0,67786.0,0.0962]
[1729850769266,0.073815,67787.0,67786.0,0.19270806]
[1729850769873,0.3608,67791.0,67789.0,0.073813]
[1729850770077,0.434611,67791.0,67790.0,0.15300579]
[1729850770268,0.47061797,67791.0,67790.0,0.15300579]
[1729850770469,0.10981797,67791.0,67790.0,0.15300579]
[1729850775689,0.073811,67791.0,67790.0,0.15300579]
[1729850777081,0.073811,67791.0,67790.0,0.24947705]
[1729850778388,0.073811,67791.0,67790.0,0.32286871]
[1729850779177,0.073811,67791.0,67790.0,0.24947705]
[1729850780481,0.073811,67791.0,67790.0,0.32286066]
[1729850780677,0.073811,67791.0,67790.0,0.24947705]
[1729850781084,0.15751679,67791.0,67790.0,0.13207126]
[1729850781286,0.15751679,67791.0,67790.0,0.1321702]
[1729850781491,0.15751679,67791.0,67790.0,0.20555215]